bitfinex-derivatives/quotes_BTCF0:USTF0_20251216
["timestamp","ask_amount","ask_price","bid_price","bid_amount"]
[1765896071378,0.06141,87121.0,87104.0,0.01904]
[1765896071589,0.03045,87114.0,87113.0,0.0114818]
[1765896071772,0.06141,87129.0,87128.0,0.0114798]
[1765896072278,0.03055115,87129.0,87128.0,0.0114798]
[1765896072472,0.00010115,87129.0,87128.0,0.0114798]
[1765896072673,0.00010115,87129.0,87128.0,0.0725398]
[1765896073082,0.03045,87126.0,87125.0,0.0305202]
[1765896073677,0.00010115,87129.0,87125.0,0.0305202]
[1765896074172,0.00010115,87129.0,87128.0,0.0114798]
[1765896075376,0.00010115,87129.0,87128.0,0.0725398]
[1765896075572,0.00017221,87137.0,87128.0,0.0725398]
[1765896075573,0.00017221,87137.0,87136.0,0.0725388]
[1765896075775,0.19775234,87150.0,87149.0,0.0114771]
[1765896075975,0.73448,87156.0,87155.0,0.0114763]
[1765896075976,0.79589,87156.0,87155.0,0.0114763]
[1765896076177,0.73448,87156.0,87155.0,0.0725363]
[1765896076479,0.08189765,87198.0,87143.0,0.0114778]
[1765896076480,0.68784,87178.0,87173.0,0.0114739]
[1765896076673,0.68784,87178.0,87175.0,0.06106]
[1765896076879,0.03045,87167.0,87166.0,0.00017209]
[1765896077075,0.68784,87178.0,87166.0,0.00017209]
[1765896077076,1.63299234,87176.0,87175.0,0.03099]
[1765896077280,1.43524,87176.0,87174.0,0.0114737]
[1765896077588,0.0114745,87169.0,87166.0,0.00017209]
[1765896077786,0.0114739,87173.0,87167.0,0.0114747]
[1765896077984,0.03045,87167.0,87166.0,0.00017209]
[1765896078189,0.03045,87167.0,87166.0,0.00117209]
[1765896078585,0.004,87176.0,87175.0,0.06106]
[1765896079586,0.00017209,87183.0,87178.0,0.0114732]
[1765896079888,0.0114737,87175.0,87169.0,0.0114744]
[1765896080094,0.20922554,87179.0,87169.0,0.0114744]
[1765896080282,0.19775234,87179.0,87175.0,0.0134736]
[1765896080493,0.0114733,87178.0,87175.0,0.002]
[1765896080886,0.0114733,87178.0,87175.0,0.0134736]
[1765896081189,0.03045,87179.0,87178.0,0.0114732]
[1765896081396,0.00017209,87183.0,87182.0,0.0725327]
[1765896081686,0.00017209,87183.0,87182.0,0.0424627]
[1765896081890,0.00017209,87183.0,87182.0,0.0114727]
[1765896081891,0.06158209,87183.0,87182.0,0.0114727]
[1765896082086,0.00017209,87183.0,87182.0,0.0725327]
[1765896082288,0.00017209,87183.0,87182.0,0.0114727]
[1765896082493,0.00017209,87183.0,87181.0,0.0114728]
[1765896082678,0.00017209,87183.0,87182.0,0.001]
[1765896082882,0.03062209,87183.0,87182.0,0.0124727]
[1765896083086,0.00017209,87183.0,87182.0,0.0735327]
[1765896083887,0.06145579,87219.0,87217.0,0.0114681]
[1765896084088,0.19775234,87230.0,87217.0,0.0725281]
[1765896084890,0.19775234,87240.0,87239.0,0.0114652]
[1765896085093,0.14052,87243.0,87239.0,0.0114652]
[1765896085295,0.00017198,87248.0,87247.0,0.03099]
[1765896085592,0.02576934,87248.0,87237.0,0.0114654]
[1765896085893,0.02576934,87248.0,87231.0,0.00017198]
[1765896085894,0.2233497,87247.0,87231.0,0.00017198]
[1765896086096,0.0114651,87240.0,87231.0,0.00017198]
[1765896086497,0.0114645,87245.0,87231.0,0.01163818]
[1765896086696,0.19775234,87241.0,87231.0,0.00017198]
[1765896086891,0.0114651,87240.0,87237.0,0.001]
[1765896087493,0.23945198,87248.0,87243.0,0.0114646]
[1765896087697,0.23945198,87248.0,87242.0,0.0114647]
[1765896088009,0.0114647,87244.0,87238.0,0.03099]
[1765896088988,0.011465,87241.0,87233.0,0.011466]
[1765896089484,0.23945198,87248.0,87242.0,0.03099]
[1765896089790,0.23945198,87248.0,87231.0,0.00017198]
[1765896089791,0.23945198,87248.0,87243.0,0.0114647]
[1765896090400,0.23945198,87248.0,87238.0,0.001]
[1765896090401,0.23945198,87248.0,87247.0,0.06106]
[1765896090701,0.0114597,87282.0,87257.0,0.0725229]
[1765896090999,0.31844,87287.0,87264.0,0.01904]
[1765896091191,0.0114591,87286.0,87264.0,0.01904]
[1765896091499,0.31844,87287.0,87280.0,0.0114598]
[1765896091899,0.31844,87287.0,87275.0,0.00017187]
[1765896091900,0.31844,87287.0,87276.0,0.0114604]
[1765896092089,0.0114594,87284.0,87275.0,0.01163237]
[1765896092401,0.31844,87287.0,87275.0,0.00017187]
[1765896092696,0.03045,87276.0,87275.0,0.00017187]
[1765896092901,0.06141,87276.0,87275.0,0.00017187]
[1765896093293,0.31844,87287.0,87275.0,0.00017187]
[1765896093294,0.0114595,87283.0,87276.0,0.0114604]
[1765896093602,0.28934916,87285.0,87282.0,0.0114595]
[1765896093902,0.07109,87281.0,87280.0,0.001]
[1765896094196,0.13941,87276.0,87275.0,0.00017187]
[1765896094397,0.0114605,87275.0,87245.0,0.01117767]
[1765896094595,0.011461,87272.0,87241.0,0.02112]
[1765896094795,0.0114612,87270.0,87261.0,0.0114623]
[1765896094992,0.001,87276.0,87244.0,0.04022]
[1765896095296,0.001,87276.0,87275.0,0.14407]
[1765896095700,0.0849214,87268.0,87267.0,0.00017187]
[1765896095913,0.1552814,87268.0,87267.0,0.00017187]
[1765896096087,0.0114605,87275.0,87250.0,0.0114638]
[1765896096292,0.28934916,87277.0,87230.0,0.0114664]
[1765896096293,0.28934916,87260.0,87237.0,0.0114654]
[1765896096802,0.30081176,87260.0,87237.0,0.0114654]
[1765896096999,0.28934916,87260.0,87256.0,0.011463]
[1765896097408,0.0114631,87256.0,87251.0,0.0114637]
[1765896097593,0.00017187,87261.0,87250.0,0.001]
[1765896097798,0.28952103,87261.0,87256.0,0.011463]
[1765896098198,0.28952103,87261.0,87259.0,0.0114626]
[1765896098397,0.00017187,87261.0,87259.0,0.0114626]
[1765896098900,0.00017187,87261.0,87251.0,0.0114635]
[1765896099106,0.0114633,87254.0,87245.0,0.0114644]
[1765896099402,0.0114631,87256.0,87244.0,0.002]
[1765896099699,0.00017187,87261.0,87258.0,0.0114627]
[1765896100098,0.00017187,87261.0,87260.0,0.14407]
[1765896100693,0.21208,87298.0,87262.0,0.0114621]
[1765896100899,0.07272273,87295.0,87261.0,0.04022]
[1765896101096,0.07272273,87295.0,87264.0,0.0114619]
[1765896101293,0.0114584,87292.0,87290.0,0.0114585]
[1765896101498,0.21208,87298.0,87264.0,0.0114619]
[1765896101699,0.00017187,87290.0,87272.0,0.00017187]
[1765896101899,0.1552808,87273.0,87272.0,0.00017187]
[1765896103601,0.14582,87273.0,87272.0,0.00017187]
[1765896103806,0.14682,87273.0,87272.0,0.00017187]
[1765896104806,0.14582,87273.0,87272.0,0.00017187]
[1765896105103,0.14682,87273.0,87272.0,0.00017187]
[1765896105305,0.17279303,87273.0,87272.0,0.00017187]
[1765896105501,0.07646,87273.0,87272.0,0.00017187]
[1765896105701,0.14682,87273.0,87272.0,0.00017187]
[1765896106010,0.14482,87273.0,87272.0,0.00017187]
[1765896106310,0.1708171,87273.0,87272.0,0.00017187]
[1765896107004,0.14482,87273.0,87272.0,0.00017187]
[1765896107797,0.001,87273.0,87272.0,0.00017187]
[1765896108005,0.14482,87273.0,87272.0,0.00017187]
[1765896108305,0.17085635,87273.0,87272.0,0.00017187]
[1765896109613,0.17085635,87273.0,87251.0,0.0114633]
[1765896109614,0.0114636,87252.0,87251.0,0.0114633]
[1765896109809,0.14382,87244.0,87243.0,0.0114647]
[1765896110009,0.07346,87253.0,87252.0,0.0114634]
[1765896110196,0.07346,87253.0,87243.0,0.0114647]
[1765896110197,0.0114641,87250.0,87249.0,0.0114639]
[1765896110396,0.14382,87250.0,87249.0,0.0114639]
[1765896110601,0.1698822,87250.0,87249.0,0.0114639]
[1765896110896,0.07346,87244.0,87243.0,1.5114647]
[1765896111100,0.0995222,87244.0,87243.0,1.5114647]
[1765896111600,0.1698822,87244.0,87243.0,1.5]
[1765896111807,0.14382,87242.0,87241.0,0.00017187]
[1765896112111,0.16995129,87242.0,87241.0,0.00017187]
[1765896112702,0.16995129,87242.0,87207.0,0.0114694]
[1765896112703,0.1552863,87231.0,87230.0,0.0114664]
[1765896112904,0.18141759,87231.0,87230.0,1.5]
[1765896113508,0.03759759,87231.0,87230.0,1.5]
[1765896113910,0.16995129,87231.0,87230.0,1.5]
[1765896114313,0.17095129,87231.0,87230.0,1.5]
[1765896114609,0.17095129,87231.0,87228.0,0.0114667]
[1765896114610,0.14382,87229.0,87228.0,0.0114667]
[1765896114799,0.16995129,87229.0,87228.0,0.0114667]
[1765896115613,0.02613129,87229.0,87222.0,0.01163927]
[1765896115818,0.1552873,87223.0,87222.0,0.00017187]
[1765896116014,0.0114688,87213.0,87198.0,0.0114705]
[1765896116212,0.07346,87202.0,87201.0,0.0114702]
[1765896116408,0.09959129,87202.0,87201.0,0.0114702]
[1765896116911,0.16995129,87202.0,87201.0,0.0114702]
[1765896117116,0.16995129,87202.0,87194.0,0.00013574]
[1765896117117,0.0114702,87201.0,87198.0,0.0114706]
[1765896117417,0.06170359,87210.0,87194.0,0.01160694]
[1765896117418,0.14382,87195.0,87194.0,0.01160694]
[1765896117714,0.16995129,87195.0,87194.0,0.01160694]
[1765896118516,0.16995129,87195.0,87194.0,0.00013574]
[1765896120000,0.07346,87179.0,87178.0,0.01376727]
[1765896120200,0.02613129,87179.0,87178.0,0.00229417]
[1765896120401,0.00017197,87187.0,87186.0,0.14407]
[1765896120611,0.0263077,87187.0,87186.0,0.14407]
[1765896120808,0.0263077,87187.0,87185.0,0.0114723]
[1765896120809,0.14382,87186.0,87185.0,0.0114723]
[1765896121001,0.02623216,87186.0,87185.0,0.1555423]
[1765896121406,9.643e-05,87186.0,87185.0,0.1555423]
[1765896121802,0.02621631,87186.0,87185.0,0.1555423]
[1765896122001,9.643e-05,87186.0,87185.0,0.1555423]
[1765896122407,0.07346,87217.0,87216.0,0.0114683]
[1765896122612,0.09956397,87217.0,87215.0,0.0114683]
[1765896122912,0.02610397,87216.0,87215.0,0.0114683]
[1765896123117,0.02610397,87216.0,87200.0,0.03498]
[1765896123118,0.07346,87190.0,87189.0,0.0114718]
[1765896123318,0.00017197,87198.0,87197.0,0.14407]
[1765896123614,0.06153162,87230.0,87229.0,0.1371866]
[1765896123807,1.43404,87239.0,87237.0,0.0114655]
[1765896124124,0.02608585,87238.0,87210.0,0.03964]
[1765896124302,0.06083,87236.0,87235.0,0.0114656]
[1765896124503,0.08691585,87236.0,87235.0,0.0114656]
[1765896124914,0.08691585,87236.0,87232.0,0.0114661]
[1765896125213,1.43404,87239.0,87234.0,0.0114658]
[1765896125214,0.02608585,87235.0,87234.0,0.0114658]
[1765896125521,0.02608585,87235.0,87227.0,0.00017197]
[1765896125522,0.0260946,87238.0,87237.0,0.0114655]
[1765896125719,0.16187,87238.0,87227.0,0.00017197]
[1765896125915,0.12431,87228.0,87227.0,0.00017197]
[1765896126101,0.12431,87228.0,87180.0,0.04121999]
[1765896126102,0.011468,87218.0,87214.0,0.0114685]
[1765896126305,0.0114686,87214.0,87195.0,0.051691]
[1765896126513,0.28965495,87210.0,87209.0,0.0114691]
[1765896126701,0.28965495,87220.0,87217.0,0.011468]
[1765896126910,0.28965495,87227.0,87225.0,0.011467]
[1765896127104,0.02596892,87226.0,87225.0,0.073337]
[1765896127308,0.02596892,87226.0,87225.0,0.0733371]
[1765896127509,0.02596892,87226.0,87225.0,0.1371871]
[1765896127805,0.00017197,87235.0,87234.0,0.1371859]
[1765896129306,0.0114635,87253.0,87249.0,0.0114638]
[1765896129519,0.02596391,87252.0,87249.0,0.0114638]
[1765896129713,0.73348,87255.0,87249.0,0.0114638]
[1765896129714,0.02596391,87251.0,87250.0,0.06187]
[1765896130028,0.02596391,87251.0,87250.0,0.12572]
[1765896130624,0.73348,87255.0,87254.0,0.1371833]
[1765896130821,0.00017197,87259.0,87258.0,0.1371827]
[1765896131317,0.00017197,87259.0,87258.0,0.12572]
[1765896131617,0.00017197,87259.0,87253.0,0.0114633]
[1765896131618,0.03759979,87259.0,87253.0,0.0114633]
[1765896131819,0.02596512,87258.0,87253.0,0.0114633]
[1765896132021,0.02596512,87258.0,87249.0,0.0144639]
[1765896132022,0.0114629,87257.0,87249.0,0.0144639]
[1765896132223,0.00017197,87259.0,87249.0,0.001]
[1765896132224,0.12431,87250.0,87249.0,0.001]
[1765896132519,0.15027512,87250.0,87249.0,0.001]
[1765896132710,0.02596512,87250.0,87249.0,0.12672]
[1765896132916,0.00017197,87259.0,87256.0,0.011463]
[1765896133118,0.12431,87257.0,87256.0,0.011463]
[1765896133315,0.12431,87254.0,87253.0,0.001]
[1765896133516,0.12431,87251.0,87250.0,0.001]
[1765896133723,0.12431,87251.0,87242.0,0.00017197]
[1765896133724,0.06083,87243.0,87242.0,0.00017197]
[1765896133917,0.41363318,87252.0,87251.0,0.0114637]
[1765896134120,0.02597629,87252.0,87251.0,0.0114637]
[1765896134320,0.02597629,87252.0,87251.0,0.1371837]
[1765896135119,0.00017197,87259.0,87258.0,0.0733327]
[1765896135425,0.00017197,87259.0,87258.0,0.1371827]
[1765896135721,0.00017197,87259.0,87258.0,0.0114627]
[1765896136025,0.06083,87256.0,87255.0,0.0114631]
[1765896137018,0.06083,87256.0,87251.0,0.002]
[1765896137019,0.12431,87252.0,87251.0,0.002]
[1765896137718,0.12431,87252.0,87249.0,0.0114638]
[1765896137916,0.00017197,87259.0,87249.0,0.0114638]
[1765896137917,0.00017197,87259.0,87258.0,0.1371827]
[1765896138120,0.06083,87283.0,87282.0,0.0114595]
[1765896138420,0.12431,87273.0,87270.0,0.011461]
[1765896138726,0.06083,87271.0,87270.0,0.011461]
[1765896138932,0.0114603,87277.0,87276.0,0.0114604]
[1765896139322,0.12431,87273.0,87272.0,0.0114608]
[1765896139514,0.12431,87273.0,87268.0,0.00017187]
[1765896139515,0.12431,87269.0,87268.0,0.00017187]
[1765896141019,0.15028387,87269.0,87268.0,0.00017187]
[1765896141220,0.80972387,87269.0,87268.0,0.00017187]
[1765896141425,0.81072387,87269.0,87268.0,0.00017187]
[1765896142827,0.1357737,87251.0,87250.0,0.0114638]
[1765896143021,0.12431,87251.0,87250.0,0.0114638]
[1765896144628,0.06083,87243.0,87242.0,0.00017187]
[1765896144828,0.12431,87243.0,87242.0,0.00017187]
[1765896145027,0.12431,87233.0,87232.0,0.0114662]
[1765896145634,0.12431,87240.0,87239.0,0.0114651]
[1765896145832,0.15028472,87240.0,87239.0,0.0114651]
[1765896146128,0.08680397,87240.0,87239.0,0.0114651]
[1765896146329,0.08680397,87240.0,87231.0,0.00017187]
[1765896146330,0.12431,87232.0,87231.0,0.00017187]
[1765896146533,0.15029161,87232.0,87231.0,0.00017187]
[1765896146725,0.15029161,87232.0,87201.0,0.0114702]
[1765896146726,0.12431,87219.0,87201.0,0.0114702]
[1765896147031,0.0114652,87239.0,87216.0,0.0114681]
[1765896147032,0.06083,87217.0,87216.0,0.0114681]
[1765896147429,0.12431,87217.0,87216.0,0.0114681]
[1765896147637,0.1357794,87207.0,87206.0,0.01161749]
[1765896147821,0.1357794,87207.0,87206.0,0.00014799]
[1765896148037,0.06083,87187.0,87186.0,0.0114722]
[1765896148238,0.12431,87187.0,87186.0,0.0114722]
[1765896148734,0.06083,87179.0,87178.0,0.01376747]
[1765896148935,0.06093146,87179.0,87178.0,0.01376747]
[1765896149435,0.12441146,87179.0,87178.0,0.00229417]
[1765896150137,0.06093146,87179.0,87178.0,0.00229417]
[1765896150336,0.00010146,87179.0,87178.0,0.00229417]
[1765896150635,0.00010146,87179.0,87178.0,0.06416417]
[1765896150829,0.12441146,87179.0,87178.0,0.00229417]
[1765896151026,0.12541146,87179.0,87178.0,0.00229417]
[1765896151227,0.12541146,87179.0,87178.0,0.00329417]
[1765896151826,0.12541146,87179.0,87178.0,0.00229417]
[1765896152032,0.15139601,87179.0,87178.0,0.00229417]
[1765896152532,0.15139601,87179.0,87178.0,0.00329417]
[1765896152834,0.15039601,87179.0,87178.0,0.00329417]
[1765896153423,0.12431,87167.0,87166.0,1.5]
[1765896153630,0.16174883,87167.0,87166.0,1.5]
[1765896154030,0.16174883,87167.0,87150.0,0.03964]
[1765896154031,0.12016,87161.0,87160.0,0.0114755]
[1765896154230,0.11586,87155.0,87154.0,0.0114763]
[1765896154534,9.004e-05,87161.0,87157.0,0.011476]
[1765896154735,0.05653,87158.0,87157.0,0.011476]
[1765896155331,0.35073004,87161.0,87157.0,0.011476]
[1765896155532,9.004e-05,87161.0,87160.0,0.05619]
[1765896155739,9.004e-05,87161.0,87160.0,0.11416]
[1765896156231,0.001,87167.0,87166.0,0.1256348]
[1765896156438,0.11686,87167.0,87166.0,0.0114748]
[1765896156625,0.11586,87167.0,87166.0,0.0114748]
[1765896156822,0.00017208,87168.0,87167.0,0.11416]
[1765896157241,0.19756534,87180.0,87179.0,0.1256331]
[1765896157537,0.05653,87179.0,87178.0,0.0114732]
[1765896157733,0.11586,87179.0,87178.0,0.0114732]
[1765896157938,0.19756534,87188.0,87166.0,0.003]
[1765896157939,0.11586,87167.0,87166.0,0.003]
[1765896158236,0.11586,87167.0,87166.0,0.001]
[1765896158540,0.11586,87164.0,87163.0,0.0114752]
[1765896159038,0.11586,87164.0,87158.0,0.00017208]
[1765896159039,0.1273358,87159.0,87158.0,0.00017208]
[1765896159739,0.26504,87164.0,87140.0,1.5]
[1765896160038,0.05653,87144.0,87143.0,0.0114778]
[1765896160229,0.19756534,87156.0,87155.0,0.0114763]
[1765896160230,0.31342534,87156.0,87155.0,0.0114763]
[1765896160533,0.59598,87156.0,87155.0,0.0114763]
[1765896160734,0.11586,87156.0,87155.0,0.0114763]
[1765896161133,0.05653,87156.0,87155.0,0.0114763]
[1765896161333,0.11586,87156.0,87155.0,0.0114763]
[1765896161931,0.11586,87153.0,87152.0,0.0114767]
[1765896162933,0.05670208,87164.0,87163.0,0.0114752]
[1765896163127,0.05670208,87164.0,87150.0,0.03436]
[1765896163128,0.0114753,87163.0,87160.0,0.0114756]
[1765896163327,0.11586,87156.0,87155.0,0.0124762]
[1765896163828,0.11586,87163.0,87162.0,0.0114753]
[1765896164332,0.00017208,87164.0,87163.0,0.11416]
[1765896166531,0.00017208,87164.0,87163.0,0.11616]
[1765896166742,0.11603208,87164.0,87163.0,0.002]
[1765896167239,0.11586,87155.0,87154.0,0.0114763]
[1765896167539,0.0114765,87154.0,87141.0,0.0114781]
[1765896167735,0.19756534,87151.0,87150.0,0.0676669]
[1765896167935,0.11586,87155.0,87154.0,0.0114763]
[1765896168142,0.11586,87148.0,87140.0,1.5]
[1765896168340,0.11586,87148.0,87147.0,0.0114773]
[1765896168742,0.53366534,87157.0,87156.0,0.0114762]
[1765896169040,0.3361,87157.0,87156.0,0.0114762]
[1765896169245,0.11586,87154.0,87153.0,0.0114765]
[1765896169545,0.11586,87150.0,87149.0,0.011477]
[1765896170336,0.54068,87162.0,87149.0,0.011477]
[1765896170548,0.11586,87161.0,87160.0,0.0114756]
[1765896171040,1.43488,87175.0,87160.0,0.0114756]
[1765896171041,0.7334,87169.0,87163.0,0.0676652]
[1765896171349,0.11603208,87164.0,87163.0,0.0114752]
[1765896171836,0.11586,87159.0,87158.0,0.0114758]
[1765896172941,0.001,87161.0,87160.0,0.11416]
[1765896173146,0.00017208,87164.0,87163.0,0.11416]
[1765896173644,0.02798645,87185.0,87163.0,0.11416]
[1765896173645,0.2356971,87225.0,87164.0,0.0231]
[1765896173840,0.11586,87187.0,87186.0,0.0114722]
[1765896174040,0.02624075,87187.0,87186.0,0.1256322]
[1765896174640,0.0114693,87208.0,87202.0,0.11416]
[1765896174840,0.1906,87212.0,87192.0,0.03436]
[1765896175144,0.00017208,87209.0,87192.0,0.03436]
[1765896175334,0.11586,87204.0,87203.0,0.0114699]
[1765896175534,0.11586,87202.0,87201.0,0.0114701]
[1765896175940,0.00017208,87209.0,87208.0,0.0676593]
[1765896176141,0.00017208,87209.0,87208.0,0.1256293]
[1765896176534,0.36237162,87242.0,87234.0,0.0114659]
[1765896176740,0.30084,87242.0,87239.0,0.0114651]
[1765896177033,0.11586,87232.0,87231.0,0.0114662]
[1765896177236,0.11586,87232.0,87215.0,0.0114684]
[1765896177237,0.05653,87239.0,87235.0,0.0114658]
[1765896177452,0.30084,87242.0,87239.0,0.0114652]
[1765896177639,0.19756534,87245.0,87228.0,0.00017198]
[1765896177640,0.31342534,87245.0,87244.0,0.0114646]
[1765896177835,0.11586,87245.0,87244.0,0.0114646]
[1765896178056,0.00017198,87246.0,87244.0,0.0114646]
[1765896178057,0.00017198,87246.0,87245.0,0.05619]
[1765896178245,0.00017198,87246.0,87245.0,0.11416]
[1765896178648,0.0283339,87254.0,87253.0,0.1256234]
[1765896178851,0.19756534,87270.0,87257.0,0.1256229]
[1765896179636,1.79592,87278.0,87265.0,0.1256218]
[1765896179637,0.00017198,87266.0,87265.0,0.1256218]
[1765896180246,0.06153162,87311.0,87277.0,0.11416]
[1765896180461,0.19756534,87290.0,87280.0,0.03436]
[1765896180641,0.19756534,87290.0,87264.0,0.0317]
[1765896180837,0.06153162,87316.0,87280.0,0.03436]
[1765896181045,0.19756534,87290.0,87280.0,0.03436]
[1765896181345,0.19756534,87290.0,87276.0,0.00017188]
[1765896181346,0.0114592,87286.0,87276.0,0.00017188]
[1765896181553,0.11586,87277.0,87276.0,0.00017188]
[1765896182156,0.19756534,87286.0,87280.0,0.0114597]
[1765896182450,0.19756534,87286.0,87277.0,0.0114602]
[1765896182845,0.19756534,87286.0,87278.0,0.0114601]
[1765896183050,0.19756534,87286.0,87276.0,0.00017188]
[1765896183051,0.19756534,87288.0,87281.0,0.0114597]
[1765896183238,0.11586,87282.0,87281.0,0.0114597]
[1765896183748,0.11586,87282.0,87276.0,0.00017188]
[1765896183749,0.10653,87277.0,87276.0,0.00017188]
[1765896184251,0.1179918,87265.0,87264.0,0.003]
[1765896184553,0.19756534,87274.0,87264.0,0.003]
[1765896184744,0.19756534,87274.0,87240.0,0.19756534]
[1765896184745,0.19756534,87274.0,87265.0,0.0114618]
[1765896184939,0.0114603,87277.0,87240.0,0.19756534]
[1765896185149,0.00017188,87271.0,87270.0,0.0114612]
[1765896185347,0.44984,87282.0,87262.0,0.00017188]
[1765896185348,0.00017188,87279.0,87262.0,0.00017188]
[1765896185644,0.00017188,87279.0,87277.0,0.0114601]
[1765896186255,0.10653,87277.0,87276.0,0.001]
[1765896186451,0.10653,87277.0,87262.0,0.00017188]
[1765896186452,0.05323,87263.0,87262.0,0.00217188]
[1765896186650,0.10653,87263.0,87262.0,0.00217188]
[1765896186952,0.0114647,87244.0,87235.0,0.0114657]
[1765896187152,0.19756534,87245.0,87216.0,0.03436]
[1765896187347,0.19756534,87245.0,87221.0,0.0114675]
[1765896187348,0.19756534,87230.0,87221.0,0.0114675]
[1765896187553,0.05323,87228.0,87227.0,0.0114668]
[1765896187756,0.05323,87228.0,87210.0,0.042569]
[1765896187955,0.00017198,87228.0,87227.0,0.0114668]
[1765896188253,0.00017198,87228.0,87227.0,0.1542468]
[1765896189464,0.00017198,87228.0,87227.0,0.1552468]
[1765896190062,0.00017198,87228.0,87227.0,0.1562468]
[1765896190561,0.00017198,87228.0,87227.0,0.1582468]
[1765896190860,0.00017198,87228.0,87227.0,0.1271468]
[1765896191045,0.00017198,87228.0,87227.0,0.1582468]
[1765896191246,0.19756534,87240.0,87239.0,0.1231452]
[1765896191459,0.19756534,87240.0,87227.0,0.0331]
[1765896191460,0.05323,87244.0,87243.0,0.0114646]
[1765896191961,0.55580534,87249.0,87230.0,0.0114663]
[1765896191962,0.0114656,87236.0,87230.0,0.0114663]
[1765896192169,0.0114656,87237.0,87232.0,0.0114661]
[1765896192460,0.10653,87232.0,87231.0,0.0114662]
[1765896193256,0.10653,87239.0,87238.0,0.0114653]
[1765896194666,0.00017198,87243.0,87242.0,0.0114648]
[1765896195060,0.00017198,87243.0,87242.0,0.0680248]
[1765896195360,0.05340198,87243.0,87242.0,0.0114648]
[1765896195566,0.05323,87231.0,87226.0,0.00017198]
[1765896195756,0.1371168,87227.0,87226.0,0.00017198]
[1765896196160,0.0114686,87214.0,87211.0,0.0114689]
[1765896196459,0.0305868,87227.0,87211.0,0.0114689]
[1765896196460,0.10653,87212.0,87211.0,0.0114689]
[1765896196769,0.10653,87220.0,87219.0,0.0114677]
[1765896197370,0.002,87227.0,87225.0,0.011467]
[1765896197573,0.10653,87226.0,87211.0,0.00017198]
[1765896197765,0.05323,87212.0,87211.0,0.01164078]
[1765896198655,0.10653,87212.0,87211.0,0.00017198]
[1765896199563,0.42901,87212.0,87211.0,0.00017198]
[1765896199965,0.10653,87202.0,87201.0,8.337e-05]
[1765896200864,0.3255201,87202.0,87201.0,8.337e-05]
[1765896201072,0.3255201,87202.0,87193.0,0.00017198]
[1765896201073,0.1180012,87194.0,87193.0,0.00017198]
[1765896201363,0.13221234,87194.0,87193.0,0.00017198]
[1765896202070,0.13230898,87194.0,87193.0,0.00017198]
[1765896202266,0.10653,87179.0,87169.0,0.0114744]
[1765896202463,0.86478237,87179.0,87167.0,0.0114747]
[1765896202665,0.86478237,87179.0,87160.0,0.0114756]
[1765896202963,0.83906664,87179.0,87177.0,0.0114733]
[1765896203170,0.83906664,87179.0,87174.0,0.0114738]
[1765896203357,0.10653,87168.0,87167.0,0.0114747]
[1765896203772,0.10653,87165.0,87164.0,0.0114751]
[1765896203966,0.05323,87162.0,87161.0,0.0114755]
[1765896204464,0.10662664,87162.0,87161.0,0.0114755]
[1765896206570,0.10653,87158.0,87157.0,0.0114759]
[1765896207067,0.05323,87158.0,87157.0,0.0114759]
[1765896207371,0.10653,87154.0,87153.0,0.0114764]
[1765896207865,0.00109664,87162.0,87161.0,0.0114755]
[1765896208062,0.00109664,87162.0,87161.0,0.1231555]
[1765896208260,9.664e-05,87162.0,87161.0,0.1231555]
[1765896208465,0.00109664,87162.0,87161.0,0.1231555]
[1765896209062,9.664e-05,87162.0,87161.0,0.1231555]
[1765896209756,9.664e-05,87162.0,87161.0,0.1251555]
[1765896210168,9.664e-05,87162.0,87161.0,0.1271555]
[1765896211471,0.2897027,87190.0,87172.0,0.1231541]
[1765896211669,0.2897027,87182.0,87172.0,0.0680341]
[1765896211872,0.05340208,87173.0,87172.0,0.0114741]
[1765896212075,0.00017208,87173.0,87172.0,0.1231541]
[1765896212569,0.10670208,87173.0,87172.0,0.0114741]
[1765896212767,0.10670208,87173.0,87172.0,0.001]
[1765896212965,0.10670208,87173.0,87161.0,0.002]
[1765896212966,0.1180054,87162.0,87161.0,0.002]
[1765896213160,0.1180054,87162.0,87144.0,0.0114776]
[1765896213161,0.10653,87147.0,87144.0,0.0114776]
[1765896213364,0.10653,87147.0,87141.0,0.0114781]
[1765896213677,0.04802,87154.0,87153.0,0.0114765]
[1765896213970,0.10006,87152.0,87151.0,0.0114767]
[1765896214360,0.00017208,87155.0,87154.0,0.0114764]
[1765896214566,0.00017208,87155.0,87138.0,0.00229522]
[1765896214567,0.0114764,87154.0,87151.0,0.0114768]
[1765896214763,0.00017208,87155.0,87154.0,0.1100064]
[1765896215160,0.00017208,87155.0,87147.0,0.0114773]
[1765896215161,0.10006,87148.0,87147.0,0.0114773]
[1765896215367,0.001,87152.0,87151.0,0.0114768]
[1765896215584,0.001,87152.0,87151.0,0.1100068]
[1765896215777,0.001,87152.0,87138.0,0.00229522]
[1765896215778,0.11170838,87155.0,87138.0,0.00229522]
[1765896215970,0.10006,87147.0,87138.0,0.00229522]
[1765896216172,0.10006,87147.0,87146.0,0.01162513]
[1765896216475,0.10006,87147.0,87146.0,0.00014773]
[1765896217587,0.10006,87147.0,87138.0,0.00229522]
[1765896217588,0.1115384,87139.0,87138.0,0.00229522]
[1765896217778,0.1115384,87139.0,87108.0,0.0114824]
[1765896217779,0.10006,87129.0,87128.0,0.0114797]
[1765896218284,0.04802,87129.0,87128.0,0.0114797]
[1765896218481,0.10023208,87137.0,87136.0,0.0114788]
[1765896218682,0.10032834,87137.0,87136.0,0.0114788]
[1765896219280,0.10032834,87137.0,87128.0,0.005]
[1765896219483,0.04828834,87137.0,87136.0,0.0114788]
[1765896219679,0.00026834,87137.0,87136.0,0.0114788]
[1765896219879,0.00026834,87137.0,87136.0,0.0134788]
[1765896220381,0.00026834,87137.0,87136.0,0.0144788]
[1765896220583,0.00026834,87137.0,87136.0,0.0619688]
[1765896220782,0.00026834,87137.0,87136.0,0.1130088]
[1765896220984,0.00026834,87137.0,87136.0,0.1427588]
[1765896221685,0.00026834,87137.0,87136.0,0.1130088]
[1765896222877,0.04828834,87137.0,87136.0,0.0144788]
[1765896223179,0.10032834,87137.0,87136.0,0.0144788]
[1765896223479,0.10032834,87137.0,87136.0,0.003]
[1765896224376,0.00026834,87137.0,87136.0,0.10153]
[1765896225378,0.00026834,87137.0,87136.0,0.003]
[1765896225584,0.00026834,87137.0,87136.0,0.10153]
[1765896226473,0.12606871,87137.0,87136.0,0.003]
[1765896229394,0.1115407,87123.0,87122.0,0.0114806]
[1765896229694,0.13733799,87123.0,87122.0,0.0114806]
[1765896229986,0.13733799,87123.0,87107.0,0.0114825]
[1765896229987,0.10006,87120.0,87107.0,0.0114825]